[Event "Romanian Rapid Open 2022"]
[Site "Sebes"]
[Date "2022.12.02"]
[Round "7.8"]
[White "Secheres, Adrian-Simion"]
[Black "Bulmaga, Irina"]
[Result "1-0"]
[ECO "E32"]
[WhiteElo "2365"]
[BlackElo "2426"]
[Annotator "TA"]
[PlyCount "151"]
[EventDate "2022.12.02"]
[EventType "rapid"]
[EventCountry "ROU"]
[SourceTitle "playchess.com"]
[Source "ChessBase"]
[SourceQuality "1"]
[TimeControl "600+5"]

{[%evp 11,151,12,11,0,0,0,0,0,0,0,0,0,0,-3,9,4,13,6,17,12,10,11,13,20,30,37,40,31,40,62,58,68,70,54,97,107,104,97,185,162,158,162,147,168,214,216,221,218,262,223,220,226,216,207,239,132,189,183,175,175,154,161,130,0,45,27,57,51,79,67,66,60,53,0,4,0,0,0,12,0,182,181,158,54,71,52,377,378,401,400,529,535,524,529,617,615,843,807,801,610,561,584,607,532,876,876,853,651,702,610,763,575,1074,479,425,388,581,589,552,526,808,555,781,704,1174,1293,2852,2575,2188,2144,29985,29986,29986,29986,29987,29983,29985,29986,29987,29988,29988,29989]} 1. d4 {[%emt 0:00:03]} Nf6 {[%emt 0:00:01]} 2. c4 {[%emt 0:00:03]} e6 {[%emt 0:00:02]} 3. Nc3 {[%emt 0:00:04]} Bb4 {[%emt 0:00:02]} 4. Qc2 {[%emt 0:00:03]} O-O {[%emt 0:00:03]} 5. Nf3 {[%emt 0:00:03]} d6 {[%emt 0:00:12]} 6. Bd2 {[%emt 0:00:09]} c5 {[%emt 0:00:15]} 7. a3 {[%emt 0:00:45] E32: Nimzo-Indian: Classical (4 Qc2): 4...0-0.} Bxc3 {[%emt 0:00:09]} 8. Bxc3 {[%emt 0:00:02]} cxd4 {[%emt 0:00:15]} 9. Nxd4 {[%emt 0:00:29] The position is equal.} e5 {[%emt 0:00:02]} 10. Nf3 {[%emt 0:00:03] [#]} Be6 $146 {[%emt 0:00:09]} ({Predecessor:} 10... Nbd7 11. e3 b6 12. Be2 Bb7 13. O-O Ne4 14. Rfd1 Qe7 15. Be1 f5 16. b4 Rf6 {1-0 (44) Lopez Martinez,J (2581)-Peralta,F (2582) Barcelona 2018}) 11. e3 {[%emt 0:00:25]} Qc8 {[%emt 0:00:23]} 12. b3 {[%emt 0:01:25]} Bf5 {[%emt 0:00:08]} 13. Qb2 {[%emt 0:00:01]} Ne4 {[%emt 0:00:16]} 14. Be2 {[%emt 0:00:03]} Nd7 {[%emt 0:00:53][%cal Ob7b5,Bb8d7,Bd7c5,Bc5a4][%mdl 32]} 15. O-O {[%emt 0:00:31]} a5 {[%emt 0:00:17]} 16. Nd2 {[%emt 0:00:47]} Nxc3 {[%emt 0:00:27]} 17. Qxc3 {[%emt 0:00:01]} Qc6 {[%emt 0:00:26]} 18. Rfd1 {[%emt 0:00:49]} Nc5 {[%emt 0:00:13]} 19. b4 {[%emt 0:00:16]} Na4 {[%emt 0:00:57]} 20. Qb3 {[%emt 0:00:01] aiming for b5.} Nb6 {[%emt 0:00:03]} 21. Rac1 {[%emt 0:01:04]} Nd7 {[%emt 0:00:46]} 22. Qb2 {[%emt 0:01:09]} (22. Bf3 $5 {[%cal Rf3c6]} Qc7 23. g4 $14) 22... b6 {[%emt 0:00:35]} 23. Bf3 {[%emt 0:00:21]} e4 {[%emt 0:00:02]} 24. Be2 {[%emt 0:00:01]} a4 {[%emt 0:00:45] Prevents Nb3.} (24... Ne5 $16 {was called for.}) 25. Qd4 {[%emt 0:00:07]} Nf6 {[%emt 0:01:31]} 26. Nb1 {[%emt 0:00:07]} Rfd8 {[%emt 0:00:27]} 27. Nc3 {[%emt 0:00:02]} h5 {[%emt 0:00:18]} (27... Rab8 $142 28. h3 h6) 28. Nd5 $18 {[%emt 0:00:25]} Nxd5 {[%emt 0:00:04]} 29. cxd5 {[%emt 0:00:02]} (29. Qxd5 $6 Qxd5 30. Rxd5 (30. cxd5 g6 $16) 30... Be6 $16) 29... Qb7 {[%emt 0:00:11]} 30. Bxh5 {[%emt 0:00:06]} Rac8 {[%emt 0:00:06]} 31. h3 {[%emt 0:00:28]} b5 {[%emt 0:00:01]} 32. Be2 {[%emt 0:00:06]} f6 {[%emt 0:00:08]} 33. Qd2 {[%emt 0:00:50]} (33. Kh2 $18) 33... Bg6 {[%emt 0:00:15]} (33... Bd7 $16 34. Bh5 Kh7) 34. Rc6 {[%emt 0:00:51]} Be8 {[%emt 0:00:33]} 35. Rxc8 {[%emt 0:00:18]} Rxc8 {[%emt 0:00:01]} 36. Bg4 {[%emt 0:00:04]} Rc4 {[%emt 0:00:11]} 37. Be2 {[%emt 0:00:34]} (37. Be6+ $16 Kf8 38. Qe2) 37... Rc8 $14 {[%emt 0:00:01]} 38. Qd4 {[%emt 0:00:06]} Bg6 {[%emt 0:00:14]} 39. h4 {[%emt 0:00:05]} Rc2 {[%emt 0:00:08] Against h5} 40. Rd2 {[%emt 0:00:11]} Rc1+ {[%emt 0:00:19]} 41. Kh2 $1 {[%emt 0:00:03]} f5 {[%emt 0:00:13]} 42. g3 {[%emt 0:00:12]} (42. Qb2 $14 Rc8 43. h5) 42... Be8 {[%emt 0:00:03]} 43. Rd1 {[%emt 0:00:07]} Rc2 {[%emt 0:00:07]} 44. Rd2 {[%emt 0:00:01]} Qc7 {[%emt 0:00:03]} 45. g4 {[%emt 0:00:08]} Qc3 $2 {[%emt 0:00:20]} (45... Qc8 $11 {and Black stays safe.}) 46. Qxc3 $1 $18 {[%emt 0:00:13]} (46. gxf5 $2 Qxd2 47. Qxd2 Rxd2 $19) 46... Rxc3 {[%emt 0:00:00][%mdl 4096] Endgame KRB-KRB} 47. Ra2 {[%emt 0:00:04]} (47. gxf5 $16 {Strongly threatening Ra2.} Rxa3 48. Rc2) 47... fxg4 $14 {[%emt 0:00:15] [#]} 48. Kg3 $1 {[%emt 0:00:01]} (48. Bxg4 Bf7 $11) 48... Bf7 $2 {[%emt 0:00:06][%mdl 8192] This costs Black the game.} (48... Bd7 $1 $14) 49. Bxb5 $18 {[%emt 0:00:02]} ({Less strong is} 49. Kxg4 Bxd5 50. Rd2 Bc4 $14) 49... Bxd5 {[%emt 0:00:02]} 50. Rd2 {[%emt 0:00:05]} Bf7 {[%emt 0:00:24]} 51. Bxa4 {[%emt 0:00:02]} ({Weaker is} 51. Kxg4 Rxa3 52. Rxd6 Ra1 $14) 51... Rxa3 {[%emt 0:00:02]} 52. Bc6 {[%emt 0:00:01]} Rb3 {[%emt 0:00:15]} 53. b5 {[%emt 0:00:09]} ({Not} 53. Bxe4 Rxb4 54. Bc6 Kf8 55. Rxd6 Rb6 56. Rd8+ (56. Kxg4 Be8 $11) 56... Ke7 57. Rd7+ Kf6 $18) 53... d5 {[%emt 0:00:27]} 54. Rxd5 {[%emt 0:00:04]} Be6 {[%emt 0:00:15]} 55. Re5 {[%emt 0:00:06]} Kf7 {[%emt 0:00:04]} 56. Rxe4 {[%emt 0:00:02]} Rb1 {[%emt 0:00:01]} 57. Rd4 {[%emt 0:00:18]} Rg1+ {[%emt 0:00:05]} 58. Kf4 {[%emt 0:00:02]} Rf1 {[%emt 0:00:02]} 59. Rd2 {[%emt 0:00:03]} Rb1 {[%emt 0:00:04]} 60. h5 {[%emt 0:00:08]} Kf6 {[%emt 0:00:02]} 61. e4 {[%emt 0:00:04]} Rb4 {[%emt 0:00:07]} 62. Ke3 {[%emt 0:00:09]} (62. Rd6 $142 {Threatens to win with Bd5.} Kf7 63. b6 Rxb6 {[#]} 64. Be8+ $1 {[%mdl 512]} Kxe8 65. Rxb6) 62... Ke5 {[%emt 0:00:03]} 63. Kd3 {[%emt 0:00:05]} Rb3+ {[%emt 0:00:15]} (63... Bf7 {keeps fighting.} 64. Kc2 Be6) 64. Kc2 {[%emt 0:00:01]} Rb4 {[%emt 0:00:02]} 65. Rd8 {[%emt 0:00:06]} Kf4 {[%emt 0:00:05]} 66. Rf8+ {[%emt 0:00:03]} Kg5 {[%emt 0:00:06]} 67. Kc3 {[%emt 0:00:03]} Rb3+ {[%emt 0:00:02]} 68. Kd4 {[%emt 0:00:01]} Kxh5 {[%emt 0:00:11]} 69. Kc5 {[%emt 0:00:03] And now b6 would win.} Rc3+ {[%emt 0:00:02]} 70. Kd6 {[%emt 0:00:01]} Rb3 {[%emt 0:00:15]} 71. Kxe6 {[%emt 0:00:03] White mates.} Kh4 {[%emt 0:00:01]} 72. Kd6 {[%emt 0:00:03]} Kh3 {[%emt 0:00:02]} 73. Kc5 {[%emt 0:00:02]} Kg2 {[%emt 0:00:02]} 74. b6 {[%emt 0:00:03][%cal Bb5b6,Bb6b7][%mdl 32]} Rb2 {[%emt 0:00:03]} 75. e5+ {[%emt 0:00:01]} Kg1 {[%emt 0:00:01]} 76. b7 {[%emt 0:00:01] Weighted Error Value: White=0.20 (precise) /Black=0.33} 1-0

[Event "Romanian Rapid Open 2022"]
[Site "Sebes"]
[Date "2022.12.02"]
[Round "7.9"]
[White "Soltanici, Ruslan"]
[Black "Dragomirescu, Angela"]
[Result "1-0"]
[ECO "B08"]
[WhiteElo "2357"]
[BlackElo "2104"]
[Annotator "TA"]
[PlyCount "73"]
[EventDate "2022.12.02"]
[EventType "rapid"]
[EventCountry "ROU"]
[SourceTitle "playchess.com"]
[Source "ChessBase"]
[SourceQuality "1"]
[TimeControl "600+5"]

{[%evp 14,73,40,22,70,68,67,52,59,60,49,33,65,67,71,75,146,134,135,87,121,112,125,122,144,74,98,96,98,34,37,0,103,113,118,60,145,133,187,189,538,532,668,257,258,250,262,255,243,229,261,244,412,393,386,385,846,835,1303,1268,1172,1202]} 1. e4 {[%emt 0:00:03]} d6 {[%emt 0:00:00]} 2. d4 {[%emt 0:00:06]} Nf6 {[%emt 0:00:01]} 3. Nc3 {[%emt 0:00:01]} g6 {[%emt 0:00:02]} 4. Nf3 {[%emt 0:00:05]} Bg7 {[%emt 0:00:01]} 5. Be2 {[%emt 0:00:01]} O-O {[%emt 0:00:06]} 6. O-O {[%emt 0:00:01]} c6 {[%emt 0:00:13]} 7. a4 {[%emt 0:00:02]} Qc7 {[%emt 0:00:36]} 8. Bf4 {[%emt 0:00:24]} Nh5 {[%emt 0:00:18] B08: Pirc Defence: Classical System.} (8... Nbd7 $11 {is superior.}) 9. Be3 $14 {[%emt 0:00:32]} e5 {[%emt 0:00:10]} 10. a5 {[%emt 0:00:34]} Nd7 {[%emt 0:00:44] White is slightly better.} 11. Re1 {[%emt 0:00:52] [#]} Nhf6 $146 {[%emt 0:02:52]} ({Predecessor:} 11... Nf4 12. Bc4 b5 13. Bb3 b4 14. Ne2 Nxe2+ 15. Qxe2 Rb8 16. dxe5 Nxe5 17. Nxe5 Bxe5 18. Ra2 Be6 19. f4 Bxb3 20. cxb3 Bg7 21. Qf2 c5 22. e5 Rfc8 23. exd6 Qxd6 24. Raa1 {½-½ (24) Izdebska,M (2065)-Hagesaether,N (2090) Rimavska Sobota 1996}) 12. h3 {[%emt 0:01:10]} Re8 {[%emt 0:00:27]} 13. d5 {[%emt 0:00:08]} cxd5 {[%emt 0:00:17]} 14. exd5 {[%emt 0:00:03]} (14. Nxd5 Nxd5 15. exd5 (15. Qxd5 Nf6 $11) 15... f5 $11) 14... e4 {[%emt 0:01:10]} ({Black should play} 14... Qb8) 15. Nd2 $1 $16 {[%emt 0:00:33]} Ne5 {[%emt 0:03:38]} 16. Nb5 {[%emt 0:03:32]} (16. Ncxe4 $6 Nxd5 17. Bg5 h6 $11) ({White should try} 16. Bd4) 16... Qb8 {[%emt 0:00:07]} 17. c4 {[%emt 0:00:03]} Bd7 {[%emt 0:00:07]} 18. Nc3 {[%emt 0:00:03]} Qc7 {[%emt 0:00:28]} 19. b4 {[%emt 0:00:15]} (19. Ndxe4 $6 Nxc4 20. Nxf6+ Bxf6 $14) (19. Ncxe4 $6 Nxe4 20. Nxe4 Nxc4 21. Bxc4 Rxe4 $11) (19. Bd4 $142) 19... Nd3 {[%emt 0:00:14]} 20. Bxd3 {[%emt 0:00:43]} exd3 {[%emt 0:00:00]} 21. Qb1 {[%emt 0:00:03]} (21. Rc1 $16) 21... Bf5 {[%emt 0:00:12]} 22. Nb5 {[%emt 0:00:08]} Qb8 {[%emt 0:00:03]} (22... Qd7 $11 {remains equal.} 23. Nd4 Ne4 24. Nxf5 Qxf5) 23. Nd4 {[%emt 0:00:04] Threatens to win with Nxf5. Pair of Knights!} Qc8 {[%emt 0:00:07][%cal Of5h3]} 24. Ra3 {[%emt 0:00:08]} (24. Nxf5 $1 $16 Qxf5 25. Ra3) 24... Ne4 {[%emt 0:00:05]} (24... Bxh3 $1 $14 25. gxh3 Qxh3) 25. Nxf5 {[%emt 0:00:18]} (25. Rxd3 $2 Nxd2 26. Bxd2 Bxd4 $19) (25. Qxd3 {[#]} Nxf2 $1 26. Qf1 Nxh3+ $1 27. gxh3 Rxe3 $1 28. Rexe3 Bxd4 $15) 25... Qxf5 {[%emt 0:00:02]} (25... Nxd2 $16 {keeps fighting.} 26. Bxd2 (26. Qxd3 Nxc4 27. Nxg7 Rxe3 $16) 26... Rxe1+ 27. Qxe1 (27. Bxe1 Qxf5 28. Qxd3 Qxd3 $16) 27... Qxf5) 26. Qxd3 $18 {[%emt 0:00:05]} (26. Rxd3 $6 Nxd2 27. Bxd2 (27. Rxd2 Bc3 $11) 27... Rxe1+ 28. Bxe1 Rc8 $14) 26... Re7 $2 {[%emt 0:00:07]} (26... Nxd2 {is more resistant.} 27. Qxd2 Rac8) 27. g4 {[%emt 0:01:06]} Qe5 {[%emt 0:00:05] [#]} 28. Bd4 $1 {[%emt 0:00:35][%mdl 512] Against f5} Qxd4 {[%emt 0:00:03]} 29. Qxd4 {[%emt 0:00:02]} (29. Rxe4 $6 Rxe4 30. Nxe4 Rd8 31. Qxd4 Bxd4 $18) (29. Nxe4 $2 Qxd3 30. Rxd3 f5 31. gxf5 gxf5 $19) 29... Bxd4 {[%emt 0:00:02]} 30. Rxe4 {[%emt 0:00:01]} Rxe4 31. Nxe4 {[%emt 0:00:02][%mdl 4096] Endgame KRB-KRN} Be5 {[%emt 0:00:11]} 32. c5 {[%emt 0:00:17][%cal Bc4c5,Bc5c6,Bc6c7][%mdl 32]} Rc8 $2 {[%emt 0:00:08]} (32... a6 {was called for.} 33. cxd6 (33. Nxd6 Bxd6 34. cxd6 Rd8 $16) 33... f5) 33. a6 {[%emt 0:00:03]} (33. cxd6 Rd8 34. Re3 b6 $16) (33. Nxd6 Bxd6 34. cxd6 Rd8 $18) 33... bxa6 {[%emt 0:00:07]} 34. c6 {[%emt 0:00:01]} ({Not} 34. Rxa6 dxc5 35. Nxc5 (35. Rxa7 cxb4 36. d6 Rd8 $15) (35. bxc5 f5 $16) 35... Bd4 $16) (34. cxd6 Rd8 $16) ({Less strong is} 34. Nxd6 Bxd6 35. cxd6 Rb8 36. Rxa6 Rb7 $18) 34... Rb8 $2 {[%emt 0:00:03]} (34... f5 35. Ng5 Bd4 36. gxf5 gxf5) 35. Rxa6 {[%emt 0:00:04] White is clearly winning.} Rxb4 {[%emt 0:00:02]} 36. c7 {[%emt 0:00:02]} Rc4 {[%emt 0:00:02] Inhibits c8Q+.} 37. Rc6 {[%emt 0:00:01] Weighted Error Value: White=0.33/Black=0.59} ({Worse is} 37. Nxd6 Rxc7 38. Kg2 Rc5 $11) 1-0

[Event "Romanian Rapid Open 2022"]
[Site "Sebes"]
[Date "2022.12.02"]
[Round "7.10"]
[White "Anton, Teodor"]
[Black "Craciun, Sasha-Matei"]
[Result "1/2-1/2"]
[ECO "D40"]
[WhiteElo "2438"]
[BlackElo "2001"]
[Annotator "TA"]
[PlyCount "153"]
[EventDate "2022.12.02"]
[EventType "rapid"]
[EventCountry "ROU"]
[SourceTitle "playchess.com"]
[Source "ChessBase"]
[SourceQuality "1"]
[TimeControl "600+5"]

{[%evp 22,153,21,20,30,16,23,0,0,0,0,0,0,0,0,-7,0,0,0,0,18,0,0,0,11,6,16,0,22,19,28,18,22,16,31,14,22,10,13,0,0,0,0,0,12,0,0,0,0,0,0,0,0,0,0,0,0,0,0,0,0,0,0,0,9,8,20,0,0,0,37,11,13,0,8,4,7,2,12,12,12,0,5,0,12,12,29,12,31,13,269,169,143,191,191,137,417,86,86,86,86,86,86,86,86,86,5575,4618,1256,102,102,86,86,86,93,93,93,0,0,0,0,0,0,0,0,0,0,0,0,0,0,0,0,0]} 1. d4 {[%emt 0:00:02]} d5 {[%emt 0:00:01]} 2. c4 {[%emt 0:00:02]} e6 {[%emt 0:00:02]} 3. Nc3 {[%emt 0:00:02]} Be7 {[%emt 0:00:02]} 4. Nf3 {[%emt 0:00:05]} Nf6 {[%emt 0:00:04]} 5. Bg5 {[%emt 0:00:03]} h6 {[%emt 0:00:02]} 6. Bh4 {[%emt 0:00:02]} O-O {[%emt 0:00:03]} 7. e3 {[%emt 0:00:02]} Nbd7 {[%emt 0:00:16]} 8. Bd3 {[%emt 0:00:02]} dxc4 {[%emt 0:00:06]} 9. Bxc4 {[%emt 0:00:02]} c5 {[%emt 0:00:05]} 10. O-O {[%emt 0:00:05]} cxd4 {[%emt 0:00:07]} 11. exd4 {[%emt 0:00:02]} Nb6 {[%emt 0:00:07]} 12. Bb3 {[%emt 0:00:06]} Nfd5 {[%emt 0:00:15] D40: Queen's Gambit Declined: Semi-Tarrasch with 5 e3.} 13. Bxe7 {[%emt 0:00:06]} Qxe7 {[%emt 0:00:40] [#]} 14. Nxd5 $146 {[%emt 0:00:08]} ({Predecessor:} 14. Ne4 Bd7 15. Nc5 Bb5 16. Re1 Rad8 17. a4 Bc6 18. Ne5 Nf4 19. Nxc6 bxc6 20. Re4 {0-1 (48) Cori Tello,D (2389)-Socko,M (2471) Riadh 2017}) 14... Nxd5 {[%emt 0:00:05]} 15. Bxd5 {[%emt 0:00:16]} exd5 {[%emt 0:00:01]} 16. Re1 {[%emt 0:00:03]} Qd6 {[%emt 0:00:27]} 17. Ne5 {[%emt 0:00:15]} Bf5 {[%emt 0:01:19]} 18. Qh5 {[%emt 0:00:46]} Bh7 {[%emt 0:00:17]} 19. Rac1 {[%emt 0:02:33]} Rad8 {[%emt 0:00:46]} 20. a3 {[%emt 0:00:57] Against Qb4} f6 {[%emt 0:00:45]} 21. Ng6 {[%emt 0:00:49]} Bxg6 {[%emt 0:01:15]} 22. Qxg6 {[%emt 0:00:02]} Rf7 {[%emt 0:00:12]} 23. b4 {[%emt 0:00:12]} Re7 {[%emt 0:00:39]} 24. g3 {[%emt 0:00:13]} Qd7 {[%emt 0:00:27]} 25. Rxe7 {[%emt 0:01:06]} Qxe7 $11 {[%emt 0:00:01][%mdl 4096] Endgame KQR-KQR} 26. Qf5 {[%emt 0:00:10]} Qd7 {[%emt 0:00:20]} 27. Qxd7 {[%emt 0:01:06]} Rxd7 {[%emt 0:00:01] KR-KR} 28. Rc8+ {[%emt 0:00:01]} Kf7 {[%emt 0:00:03]} 29. b5 {[%emt 0:00:03]} Kg6 {[%emt 0:00:19]} 30. Ra8 {[%emt 0:00:20]} b6 {[%emt 0:00:05]} 31. Rc8 {[%emt 0:00:05]} Re7 {[%emt 0:00:26]} 32. Rd8 {[%emt 0:00:26]} Re1+ {[%emt 0:00:05]} 33. Kg2 {[%emt 0:00:01][%cal Od8d7]} Ra1 {[%emt 0:00:01]} 34. Rxd5 {[%emt 0:00:04]} Rxa3 {[%emt 0:00:02]} 35. Rd6 {[%emt 0:00:19]} Rb3 {[%emt 0:00:10]} 36. Rd5 {[%emt 0:00:11]} Ra3 {[%emt 0:00:53]} 37. h4 {[%emt 0:00:05]} f5 {[%emt 0:00:26]} 38. Rd6+ {[%emt 0:00:25]} Kf7 {[%emt 0:00:03]} 39. h5 {[%emt 0:00:09]} Ra5 {[%emt 0:00:20]} 40. Rd5 {[%emt 0:00:21]} Ke6 {[%emt 0:00:01]} 41. Re5+ {[%emt 0:00:02]} Kf6 {[%emt 0:00:02]} 42. Kf3 {[%emt 0:00:04] aiming for Kf4.} Ra4 {[%emt 0:00:28]} 43. Ke3 {[%emt 0:00:11]} Rb4 {[%emt 0:00:01]} 44. Rd5 {[%emt 0:00:21] Kf4 is the strong threat.} Ke6 {[%emt 0:00:01]} 45. Re5+ {[%emt 0:00:02]} Kf6 {[%emt 0:00:01]} 46. f3 {[%emt 0:00:05]} Ra4 {[%emt 0:00:19]} 47. Re8 {[%emt 0:00:06]} Kf7 {[%emt 0:00:17]} 48. Rd8 {[%emt 0:00:11]} Ke7 {[%emt 0:00:03] Inhibits Rd7+.} 49. Rc8 {[%emt 0:00:11]} Rb4 {[%emt 0:00:25]} 50. Rc7+ {[%emt 0:00:10]} Kf6 {[%emt 0:00:01]} 51. Rc6+ {[%emt 0:00:23]} Ke7 {[%emt 0:00:08]} 52. Rc7+ {[%emt 0:00:07]} Kf6 {[%emt 0:00:01]} 53. Rxa7 {[%emt 0:00:02]} Rxb5 {[%emt 0:01:24]} 54. Rd7 {[%emt 0:00:03]} Rb1 {[%emt 0:00:00]} 55. Kf4 {[%emt 0:00:06] And now Rd6+ would win.} b5 $2 {[%emt 0:00:00][%mdl 8192]} (55... Rb3 $11) 56. Rd5 {[%emt 0:00:17]} b4 {[%emt 0:00:00]} 57. Rxf5+ {[%emt 0:00:02]} (57. Rd6+ $16 Ke7 58. Rg6) 57... Ke6 $18 {[%emt 0:00:00]} 58. Rb5 $1 {[%emt 0:00:08]} b3 $2 {[%emt 0:00:00][%mdl 8192] [#]} (58... Kd6 $16 {might work better.} 59. d5 Rd1) 59. g4 $2 {[%emt 0:00:10]} (59. d5+ $1 $18 Kf6 60. Rb6+ Kf7 61. Kf5) 59... b2 $16 {[%emt 0:00:00]} 60. d5+ {[%emt 0:00:08]} (60. Rb4 {simplifies} Rd1 61. Rxb2 Rxd4+ 62. Ke3) 60... Kf6 {[%emt 0:00:14]} (60... Kd6 $2 61. Kf5 $18) 61. Rb6+ {[%emt 0:00:01]} Kf7 {[%emt 0:00:09]} 62. Kf5 {[%emt 0:00:02] Black must now prevent Rb7+. White is more active.} (62. Rb7+ {keeps more tension.} Kf6 63. d6 Ke6 64. d7) 62... Rd1 {[%emt 0:00:08]} 63. Rb7+ {[%emt 0:00:02]} (63. Rxb2 {simplifies} Rxd5+ 64. Ke4 Rd7 65. Ra2) 63... Kf8 $2 {[%emt 0:00:03][%mdl 8192]} (63... Kg8 $16 64. Rxb2 Rxd5+ 65. Ke4 Rd7) 64. Rxb2 $18 {[%emt 0:00:05]} Rxd5+ {[%emt 0:00:01] [#]} 65. Ke6 $2 {[%emt 0:00:01]} (65. Kg6 $1 $18) 65... Rd8 $16 {[%emt 0:00:02] Prevents Rb8.} 66. f4 {[%emt 0:00:09]} Ra8 {[%emt 0:00:05]} 67. Rb6 {[%emt 0:00:07]} Kg8 {[%emt 0:00:02]} 68. Kf5 {[%emt 0:00:03] Threatens to win with Kg6.} Kh7 {[%emt 0:00:06]} 69. g5 {[%emt 0:00:09]} (69. Rd6 $16) 69... Ra5+ $11 {[%emt 0:00:03] The position is equal.} 70. Kg4 {[%emt 0:00:03] Intending g6+ and mate.} hxg5 {[%emt 0:00:01]} 71. fxg5 {[%emt 0:00:03]} Ra4+ {[%emt 0:00:01]} 72. Kg3 {[%emt 0:00:05]} Ra5 {[%emt 0:00:11]} 73. Rg6 {[%emt 0:00:17]} Ra4 {[%emt 0:00:03]} 74. Kf3 {[%emt 0:00:02]} Rh4 {[%emt 0:00:02]} 75. Re6 {[%emt 0:00:18]} Rxh5 {[%emt 0:00:05]} 76. Kg4 {[%emt 0:00:09]} Rh1 {[%emt 0:00:01]} 77. Ra6 {[%emt 0:00:05] Black escapes into a draw.   Weighted Error Value: White=0.23 (precise) /Black=0.20 (precise)} 1/2-1/2